fUSD/lending_fUSD_20250327
["ID","MTS","AMOUNT","RATE_DAILY","PERIOD"]
[356746935,1743088232978,-236.34268589,0.000149,2]
[356746937,1743088232990,-743.29599041,0.000149,2]
[356746939,1743088233001,-2715.57995216,0.000149,2]
[356746941,1743088233012,-586.2,0.000149,2]
[356746943,1743088233024,-8503.90767692,0.000149,2]
[356746946,1743088233036,-12957.54146794,0.000149,2]
[356746948,1743088233046,-297.30920418,0.000149,2]
[356746950,1743088233056,-1187.78074312,0.000149,2]
[356746952,1743088233065,-7598.0323851,0.000149,2]
[356746954,1743088233075,-174.88577102,0.000149,2]
[356746956,1743088233085,-1000.0,0.000149,2]
[356746959,1743088233095,-153.39961261,0.00014906,2]
[356746962,1743088233104,-158.31608682,0.00014973,2]
[356746964,1743088233113,-500.0,0.00014973,2]
[356746967,1743088233122,-4207.0364031,0.00014989,2]
[356746969,1743088233134,-1771.26855194,0.00014989,2]
[356746971,1743088233145,-3156.99263705,0.00014989,2]
[356746972,1743088233156,-780.09523378,0.00014989,2]
[356746973,1743088233167,-1268.08678481,0.00014989,2]
[356746990,1743088238321,-2015.8,0.00014989,2]
[356746993,1743088238334,-3562.27682047,0.00014989,2]
[356746997,1743088238366,-1174.72356368,0.00014989,2]
[356746999,1743088238375,-1502.1857656,0.00014996,2]
[356747001,1743088238386,-2560.19067072,0.00014996,2]
[356747003,1743088238397,-6141.38151788,0.00014996,2]
[356747005,1743088238407,-385.0653415,0.00014996,2]
[356747007,1743088238416,-17088.68914045,0.00014999,2]
[356747018,1743088238506,-10158.46404615,0.00014999,2]
[356747019,1743088238515,-32709.21562313,0.00015,2]
[356747022,1743088240651,-3514.93159309,0.00015,2]
[356747023,1743088240663,-5318.81631862,0.00015,2]
[356747024,1743088240702,-3054.23577524,0.00015,2]
[356747025,1743088240751,-1151.54486771,0.00015,2]
[356747026,1743088240996,-835.03443155,0.00015,2]
[356747027,1743088241007,-2626.6428,0.00015,2]
[356747028,1743088241018,-5122.72544601,0.00015,2]
[356747029,1743088241029,-3979.48707362,0.00015,2]
[356747030,1743088241040,-419.77238971,0.00015,2]
[356747031,1743088241050,-1656.58520388,0.00015,2]
[356747032,1743088241063,-9446.3636837,0.00015,2]
[356747058,1743088243534,-6043.2266933,0.00015,2]
[356747060,1743088243546,-13970.0,0.00015,2]
[356747062,1743088243557,-738.3526878,0.00015,2]
[356747068,1743088243848,-816.924,0.00015,2]
[356747070,1743088243859,-748.63230573,0.00015,2]
[356747073,1743088246441,-268.4260822,0.00014996,2]
[356747074,1743088246451,-43346.6846802,0.00015,2]
[356747075,1743088246552,-269994.37092716,0.00015,2]
[356747076,1743088246566,-1957.24645456,0.00015,2]
[356747077,1743088246578,-1189.33499715,0.00015,2]
[356747078,1743088246635,-6476.64908506,0.00015,2]
[356747079,1743088246646,-3137.17782672,0.00015,2]
[356747080,1743088246658,-8524.85139535,0.00015,2]
[356747081,1743088246670,-581.1519,0.00015,2]
[356747090,1743088324775,151.0,0.00032586,30]
[356747091,1743088330160,161.81038124,0.00032586,30]
[356747092,1743088502692,138084.0,0.00032586,100]
[356747093,1743088624532,151.0,0.00032586,30]
[356747094,1743088861580,-4000.0,0.00014624,2]
[356747095,1743088924648,290.01179703,0.00032582,30]
[356747096,1743088990652,-200.28405876,0.00014141,2]
[356747098,1743089157544,150.0,0.00014775,7]
[356747108,1743089374215,-198.9129749,0.00014141,2]
[356747112,1743089379786,-250.0,0.00014141,2]
[356747113,1743089381600,1518490.01,0.00032582,30]
[356747115,1743089420745,-150.0,0.00014141,2]
[356747126,1743089431776,-362.0460621,0.00014141,2]
[356747127,1743089431786,-194.51709019,0.00014212,2]
[356747128,1743089431798,-294.09328222,0.00014212,2]
[356747129,1743089431812,-1106.54962759,0.00014212,2]
[356747130,1743089431821,-1704.94601211,0.00014428,2]
[356747131,1743089431833,-2457.49286247,0.00014428,2]
[356747132,1743089431844,-502.85226426,0.00014428,2]
[356747133,1743089431859,-1025.55818525,0.00014428,2]
[356747134,1743089431871,-890.05067591,0.00014428,2]
[356747135,1743089431880,-276.56,0.00014496,2]
[356747136,1743089431890,-152.91,0.00014617,2]
[356747137,1743089431899,-1156.19998624,0.00014647,2]
[356747138,1743089431912,-132.14001376,0.00014647,2]
[356747139,1743089431921,-233.12,0.00014647,2]
[356747140,1743089431931,-150.0,0.00014647,2]
[356747141,1743089431940,-1000.0,0.00014647,2]
[356747142,1743089431949,-813.889,0.000147,2]
[356747143,1743089431958,-5428.75,0.00014734,2]
[356747144,1743089431968,-434.9709691,0.00014763,2]
[356747145,1743089431978,-640.7794,0.000148,2]
[356747146,1743089431987,-308.18,0.00014822,3]
[356747147,1743089431996,-21235.65529132,0.0001489,2]
[356747148,1743089432012,-867.57135776,0.0001489,2]
[356747149,1743089432023,-475.425,0.0001489,2]
[356747150,1743089432034,-2693.15555652,0.0001489,2]
[356747151,1743089432047,-120.57261149,0.0001489,2]
[356747152,1743089432058,-150.0,0.00014899,2]
[356747154,1743089432068,-160.0,0.000149,2]
[356747156,1743089432077,-4172.39335054,0.000149,2]
[356747158,1743089432089,-1886.38084821,0.000149,2]
[356747159,1743089432099,-337.55144945,0.000149,2]
[356747160,1743089432110,-3230.87938606,0.000149,2]
[356747161,1743089432125,-312.85146202,0.000149,2]
[356747162,1743089432136,-1919.95861536,0.000149,2]
[356747163,1743089432147,-9136.48017089,0.000149,2]
[356747164,1743089432158,-415.09721781,0.000149,2]
[356747165,1743089432169,-308.807424,0.000149,2]
[356747166,1743089432180,-454.92529219,0.000149,2]
[356747167,1743089432191,-476.47053834,0.000149,2]
[356747168,1743089432202,-12799.90134513,0.000149,2]
[356747169,1743089432211,-254.83646076,0.000149,2]
[356747170,1743089432222,-6838.22914659,0.000149,2]
[356747171,1743089432231,-1296.70443167,0.000149,2]
[356747172,1743089432240,-5156.20836148,0.000149,2]
[356747173,1743089432250,-168.34387425,0.000149,2]
[356747174,1743089432259,-200.0,0.00014947,2]
[356747175,1743089432268,-493.67112628,0.00014973,2]
[356747176,1743089432277,-500.0,0.00014973,2]
[356747177,1743089432286,-500.0,0.00014973,2]
[356747178,1743089432295,-500.0,0.00014973,2]
[356747179,1743089432304,-16538.6922796,0.00014996,2]
[356747180,1743089432313,-1055.6351753,0.00014996,2]
[356747181,1743089432322,-8549.7561556,0.00014996,2]
[356747182,1743089432331,-1016.3539677,0.00014996,2]
[356747183,1743089432340,-7698.2768557,0.00014996,2]
[356747184,1743089432349,-516271.22275006,0.00015,2]
[356747186,1743089437679,-415.684416,0.00014996,2]
[356747187,1743089437688,-1231.37232792,0.00015,2]
[356747188,1743089437726,-14218.25445445,0.00015,2]
[356747253,1743089439893,-17162.59927,0.00015,2]
[356747254,1743089439904,-16120.5182832,0.00015,2]
[356747255,1743089440006,-541576.26779541,0.00015,2]
[356747256,1743089440167,-1750.61998342,0.00015,2]
[356747267,1743089442937,-30758.28266774,0.00015,2]
[356747280,1743089443544,-500.0,0.00015,2]
[356747281,1743089443556,-4388.8602,0.00015,2]
[356747282,1743089443567,-11271.87373165,0.00015,2]
[356747283,1743089444114,-1.52354232,0.00015,2]
[356747285,1743089445594,-291641.58922089,0.00015,2]
[356747286,1743089445651,-7039.19619509,0.00015,2]
[356747287,1743089445663,-21661.70060159,0.00015,2]
[356747288,1743089445708,-11122.79249631,0.00015,2]
[356747289,1743089445720,-407.42847432,0.00015,2]
[356747290,1743089445732,-957.28164627,0.00015,2]
[356747291,1743089445744,-17154.06541339,0.00015,2]
[356747292,1743089445757,-435.489995,0.00015,2]
[356747293,1743089445768,-1447.60063062,0.00015,2]
[356747294,1743089445779,-1477.66391842,0.00015,2]
[356747295,1743089445790,-875.56764,0.00015,2]
[356747296,1743089445816,-473086.0297315,0.00015,2]
[356747297,1743089445829,-703875.73792478,0.00015,2]
[356747298,1743089445839,-1968.18600428,0.00015,2]
[356747299,1743089445848,-7661.10559748,0.00015,2]
[356747300,1743089445857,-18217.74721475,0.00015,2]
[356747301,1743089445867,-724682.06967058,0.00015,2]
[356747302,1743089445876,-70516.06243201,0.00015,2]
[356747303,1743089445887,-8676.27100102,0.00015,2]
[356747304,1743089445900,-3615.18748324,0.00015,2]
[356747305,1743089445911,-8753.56919401,0.00015,2]
[356747306,1743089445922,-422.50332,0.00015,2]
[356747307,1743089445937,-16425.04967217,0.00015,2]
[356747315,1743089735622,250.0,0.00032604,30]
[356747316,1743089965287,-214.86367231,0.00014406,2]
[356747317,1743089985120,-157.98384103,0.00014333,2]
[356747318,1743089996044,1672.19,0.00012429,2]
[356747319,1743090012662,-214.86367231,0.00014272,2]
[356747320,1743090060063,-151.6906,0.00013699,2]
[356747321,1743090062506,-31.6094,0.00013699,2]
[356747322,1743090062528,-119.1511136,0.00014272,2]
[356747323,1743090084447,800000.0,0.00032578,60]
[356747324,1743090093418,-150.0,0.00014272,2]
[356747325,1743090118795,-250.00582104,0.00014255,2]
[356747326,1743090123478,-150.93927295,0.00014221,2]
[356747327,1743090123956,151.0,0.00032578,30]
[356747328,1743090137794,-150.0,0.0001415,2]
[356747329,1743090163299,-161.44191272,0.00013701,2]
[356747330,1743090175068,-171.59652938,0.00013701,2]
[356747331,1743090204934,-198.46126082,0.0001369,2]
[356747332,1743090214719,-152.91151117,0.00013621,2]
[356747333,1743090242550,-152.91151117,0.00013621,2]
[356747334,1743090248652,-150.0,0.00013621,2]
[356747335,1743090252150,-951.62,0.00013621,2]
[356747336,1743090284267,-150.7605137,0.00013621,2]
[356747337,1743090302724,-186.03,0.00013561,2]
[356747338,1743090321902,-171.8459276,0.00013561,2]
[356747339,1743090351470,-162.02913889,0.00013493,2]
[356747340,1743090362022,-200.0,0.00013493,2]
[356747341,1743090398056,-151.24,0.00013493,2]
[356747342,1743090398439,176.03,0.00010904,2]
[356747343,1743090416468,-223.89472112,0.00013559,2]
[356747344,1743090423462,-150.0,0.00013559,2]
[356747345,1743090425211,151.0,0.00032579,30]
[356747346,1743090443093,-150.0,0.00013491,2]
[356747347,1743090480740,-219.07,0.00013459,2]
[356747348,1743090485186,-89.80988912,0.00013459,2]
[356747349,1743090485208,-127.34026703,0.00013491,2]
[356747350,1743090517081,-151.16351891,0.00013496,2]
[356747351,1743090517108,-92.71648109,0.00013504,2]
[356747352,1743090582164,-150.7605136,0.00013462,2]
[356747353,1743090597309,-1803.4148084,0.00013462,2]
[356747354,1743090597338,-1195.45,0.00013543,2]
[356747355,1743090597368,-299.41625659,0.00013573,2]
[356747356,1743090597404,-1447.99374341,0.00013573,2]
[356747357,1743090597433,-150.0,0.00013596,2]
[356747358,1743090597461,-1700.28732158,0.00013618,2]
[356747359,1743090597494,-1777.63267842,0.00013618,2]
[356747360,1743090597523,-176.03,0.0001363,2]
[356747361,1743090597549,-1344.61838657,0.00013633,2]
[356747362,1743090597582,-234.53549318,0.00013633,2]
[356747363,1743090599683,-150.0,0.00013633,2]
[356747364,1743090631889,-151.1635189,0.00013561,2]
[356747365,1743090631899,-464.52612025,0.00013633,2]
[356747366,1743090631909,-6493.0,0.0001366,2]
[356747367,1743090631919,-1000.0,0.00013661,2]
[356747368,1743090631928,-150.0,0.00013671,2]
[356747369,1743090631938,-172.40873918,0.0001369,2]
[356747370,1743090631947,-961.7515579,0.00013701,2]
[356747371,1743090631957,-3661.20006377,0.00013756,2]
[356747372,1743090631969,-3784.21993623,0.00013756,2]
[356747373,1743090631978,-308.8798891,0.0001386,2]
[356747374,1743090631988,-153.61,0.00014118,2]
[356747375,1743090631998,-354.29072705,0.00014221,2]
[356747376,1743090632007,-144.51861362,0.00014251,2]
[356747377,1743090632019,-360.71138638,0.00014251,2]
[356747378,1743090632028,-308.8798891,0.00014261,2]
[356747379,1743090632037,-513.27762575,0.00014272,2]
[356747380,1743090632050,-521.25758834,0.00014272,2]
[356747381,1743090632060,-85.29956704,0.00014281,2]
[356747382,1743090632072,-419.93043296,0.00014281,2]
[356747383,1743090632082,-92.67772028,0.00014311,2]
[356747384,1743090632094,-412.55227972,0.00014311,2]
[356747385,1743090632105,-505.23,0.00014341,2]
[356747386,1743090632114,-702.95966468,0.00014354,2]
[356747387,1743090632132,-322.78,0.00014354,2]
[356747388,1743090632178,-550.99707701,0.00014354,2]
[356747389,1743090632190,-1482.5487398,0.00014354,2]
[356747390,1743090632202,-12743.7032894,0.00014354,2]
[356747391,1743090632214,-1532.2091872,0.00014354,2]
[356747392,1743090632223,-150.0,0.00014354,2]
[356747393,1743090632232,-353.18089398,0.00014354,2]
[356747394,1743090632242,-380.44806136,0.00014354,2]
[356747395,1743090632251,-124.02908437,0.00014355,2]
[356747396,1743090632262,-410.03536882,0.00014355,2]
[356747428,1743090638307,-352.81755673,0.00014355,2]
[356747431,1743090640078,-391.03408005,0.00014355,2]
[356747802,1743090645992,-8712.4902,0.00014355,2]
[356747803,1743090646004,-13909.59371003,0.00014355,2]
[356747804,1743090646014,-9175.16685368,0.00014361,2]
[356747805,1743090646024,-505.23,0.00014371,2]
[356747806,1743090646033,-505.23,0.00014401,2]
[356747807,1743090646043,-9204.88632769,0.00014406,2]
[356747808,1743090646053,-505.23,0.00014431,2]
[356747809,1743090646062,-505.23,0.00014461,2]
[356747810,1743090646072,-505.23,0.00014491,2]
[356747811,1743090646082,-505.23,0.00014521,2]
[356747812,1743090646092,-505.23,0.00014551,2]
[356747813,1743090646102,-3463.32,0.00014571,2]
[356747814,1743090646111,-505.23,0.00014581,2]
[356747815,1743090646123,-200.0,0.00014585,2]
[356747816,1743090646136,-505.23,0.00014611,2]
[356747817,1743090646146,-505.23,0.00014641,2]
[356747818,1743090646157,-505.23,0.00014671,2]
[356747819,1743090646167,-434.9709691,0.00014679,2]
[356747820,1743090646177,-508.0,0.00014685,2]
[356747821,1743090646187,-1672.19,0.00014693,2]
[356747822,1743090646197,-505.23,0.000147,2]
[356747823,1743090646208,-250.01,0.00014701,2]
[356747824,1743090646219,-199.7,0.00014702,2]
[356747825,1743090646229,-505.23,0.0001473,2]
[356747826,1743090646238,-505.23,0.0001476,2]
[356747827,1743090646248,-500.0,0.00014782,2]
[356747828,1743090646257,-505.23,0.0001479,2]
[356747829,1743090646267,-150.0,0.0001484,2]
[356747830,1743090646276,-220.46,0.00014841,2]
[356747831,1743090646286,-632.39,0.00014841,2]
[356747832,1743090646295,-150.0,0.00014842,2]
[356747833,1743090646306,-651.112,0.00014899,2]
[356747834,1743090646315,-2311.35960058,0.00014899,2]
[356747835,1743090646324,-10295.3628,0.000149,2]
[356747836,1743090646334,-245.8407,0.000149,2]
[356747837,1743090646343,-13791.9255,0.000149,2]
[356747838,1743090646352,-500.0,0.000149,2]
[356747839,1743090646361,-1000.0,0.000149,2]
[356747840,1743090646371,-1399.5813,0.000149,2]
[356747841,1743090646382,-3040.018,0.000149,2]
[356747842,1743090646393,-5585.681,0.000149,2]
[356747843,1743090646402,-2500.0,0.000149,2]
[356747844,1743090646412,-500.0,0.00014973,2]
[356747845,1743090646422,-630.81486626,0.00014973,2]
[356747846,1743090646432,-226.60898117,0.00014973,2]
[356747847,1743090646441,-6502.6073252,0.00014996,2]
[356747848,1743090646451,-17107.1004702,0.00014996,2]
[356747849,1743090646460,-150.0,0.00014997,2]
[356747850,1743090646470,-181.5974054,0.00014999,2]
[356747852,1743090646480,-167135.90878905,0.00015,2]
[356747854,1743090646500,-434.63359168,0.00015,2]
[356747855,1743090724127,151.0,0.00032579,30]
[356747856,1743091024148,151.0,0.00032579,30]
[356747858,1743091324344,249.0,0.00032577,30]
[356747859,1743091398254,249.14749674,0.00032577,120]
[356747860,1743091421527,204.94056878,0.00032577,120]
[356747861,1743091521986,-157.98384103,0.00013699,2]
[356747862,1743091534246,179.15,0.00011067,2]
[356747864,1743091605919,-25.31615897,0.00013699,2]
[356747865,1743091605943,-125.44435473,0.00013834,2]
[356747866,1743091664345,-150.0,0.00013829,2]
[356747867,1743091664368,-10.08132431,0.00013834,2]
[356747868,1743091670295,-43.62432096,0.00013834,2]
[356747869,1743091670318,-189.37567904,0.00013843,2]
[356747870,1743091690282,150.0,0.00013808,7]
[356747874,1743091722403,-292.5542481,0.00013798,2]
[356747877,1743091758394,-1707.4457519,0.00013798,2]
[356747878,1743091758422,-150.0,0.00013808,2]
[356747879,1743091758452,-810.62432096,0.00013843,2]
[356747880,1743091758483,-535.13,0.0001393,2]
[356747881,1743091758512,-150.0,0.00014063,2]
[356747882,1743091758541,-147.6685659,0.00014343,2]
[356747883,1743091758578,-2.3314341,0.00014343,2]
[356747884,1743091758608,-150.7605136,0.00014434,2]
[356747885,1743091758639,-1697.91,0.00014498,2]
[356747886,1743091758670,-503.93,0.00014534,2]
[356747887,1743091758698,-317.0,0.00014548,2]
[356747888,1743091758729,-150.0,0.00014557,2]
[356747889,1743091758760,-503.93,0.00014565,2]
[356747890,1743091758792,-175.00669106,0.00014595,2]
[356747891,1743091758827,-328.92330894,0.00014595,2]
[356747892,1743091758859,-150.0,0.00014601,2]
[356747893,1743091758892,-186.49,0.00014623,2]
[356747894,1743091758923,-503.93,0.00014626,2]
[356747895,1743091758952,-503.93,0.00014657,2]
[356747896,1743091758981,-434.9709691,0.00014671,2]
[356747897,1743091759009,-503.93,0.00014687,2]
[356747898,1743091759037,-73.57150278,0.00014717,2]
[356747899,1743091759828,-216.07485828,0.00013788,2]
[356747900,1743091804713,-33.92514172,0.00013788,2]
[356747901,1743091804740,-116.07485828,0.00014253,2]
[356747903,1743091831992,-33.92514172,0.00014253,2]
[356747904,1743091832002,-150.0,0.00014567,2]
[356747905,1743091832011,-503.93,0.00014718,2]
[356747906,1743091832021,-165.37723828,0.00014748,2]
[356747907,1743091832032,-338.55276172,0.00014748,2]
[356747908,1743091832042,-503.93,0.00014779,2]
[356747909,1743091832051,-58.34438702,0.000148,2]
[356747910,1743091832101,-242.65561298,0.000148,2]
[356747911,1743091832110,-440.09251803,0.0001481,2]
[356747912,1743091832373,-63.83748197,0.0001481,2]
[356747914,1743091832383,-150.0,0.0001484,2]
[356747916,1743091832392,-503.93,0.0001484,2]
[356747918,1743091832402,-503.93,0.00014871,2]
[356747920,1743091832412,-1174.72356368,0.0001489,2]
[356747921,1743091832422,-23900.0,0.00014893,2]
[356747922,1743091832431,-283.3581,0.000149,2]
[356747923,1743091832441,-152.688,0.000149,2]
[356747924,1743091832452,-7675.8128,0.000149,2]
[356747925,1743091832462,-2500.0,0.000149,2]
[356747926,1743091832471,-503.93,0.00014901,2]
[356747927,1743091832481,-2080.22364054,0.00014924,2]
[356747928,1743091832493,-12475.53012257,0.00014924,2]
[356747929,1743091832502,-503.93,0.00014932,2]
[356747930,1743091832511,-503.93,0.00014963,2]
[356747931,1743091832521,-500.0,0.00014973,2]
[356747932,1743091832530,-503.93,0.00014993,2]
[356747933,1743091832541,-63287.25345142,0.00015,2]
[356747940,1743091837938,-517.07491599,0.00015,2]
[356747941,1743091837995,-1238.10346818,0.00015,2]
[356747942,1743091838052,-908.45,0.00015,2]
[356747943,1743091838108,-474.19459788,0.00015,2]
[356747944,1743091838223,-125641.13085526,0.00015,2]
[356747945,1743091838236,-3571.42,0.00015,2]
[356747946,1743091838247,-1499.52421762,0.00015,2]
[356748068,1743091840101,-282.0,0.00015,2]
[356748069,1743091840210,-303.7425531,0.00015,2]
[356748070,1743091840222,-1628.162577,0.00015,2]
[356748071,1743091840321,-2556.86796812,0.00015,2]
[356748072,1743091840333,-1102.5377843,0.00015,2]
[356748073,1743091840345,-4098.85659555,0.00015,2]
[356748074,1743091840488,-30960.36679668,0.00015,2]
[356748075,1743091840630,-383.86499906,0.00015,2]
[356748087,1743091843052,-10332.29788143,0.00015,2]
[356748091,1743091843826,-8515.6803221,0.00015,2]
[356748092,1743091843837,-4167.21389999,0.00015,2]
[356748094,1743091846020,-730.06483546,0.00015,2]
[356748182,1743092170025,2715.84059811,0.0002,30]
[356748184,1743092542294,556.52689373,0.00032572,120]
[356748185,1743092642838,-150.0,0.00013699,2]
[356748186,1743092686626,-33.3,0.00013699,2]
[356748187,1743092686649,-117.76,0.00014124,2]
[356748188,1743092728398,235.68904885,0.00011,2]
[356748189,1743092737024,3164.31095115,8e-05,2]
[356748190,1743092737053,3652.53806969,8e-05,2]
[356748191,1743092738868,179.94,0.00011672,2]
[356748192,1743092840221,250.01135935,0.000101,2]
[356748193,1743092842060,150.0,0.00014333,7]
[356748194,1743092874186,3434.15554361,0.0001,2]
[356748202,1743092956068,161.1267893,0.0001,2]
[356748206,1743092990435,-32.24,0.00014124,2]
[356748207,1743092990458,-168.04405876,0.00014136,2]
[356748211,1743093019462,-198.9129749,0.0001411,2]
[356748221,1743093032166,-101.0870251,0.0001411,2]
[356748222,1743093032176,-641.22722384,0.00014136,2]
[356748223,1743093032220,-5346.39530734,0.00014136,2]
[356748224,1743093032232,-535.3884398,0.00014136,2]
[356748225,1743093032329,-17208.94497026,0.00014136,2]
[356748226,1743093032339,-150.0,0.00014172,2]
[356748227,1743093032349,-2751.0,0.00014208,2]
[356748228,1743093032359,-2000.0,0.00014243,2]
[356748229,1743093032369,-296.69,0.00014404,2]
[356748230,1743093032379,-1111.1453877,0.0001455,2]
[356748231,1743093032388,-1000.0,0.00014578,2]
[356748232,1743093032398,-216.07,0.00014589,2]
[356748233,1743093032408,-7657.63,0.00014658,2]
[356748234,1743093032417,-159.64,0.00014701,2]
[356748235,1743093032427,-434.9709691,0.00014737,2]
[356748236,1743093032438,-1874.34,0.00014749,2]
[356748237,1743093032448,-250.0,0.0001489,2]
[356748238,1743093032458,-150.0,0.00014899,2]
[356748239,1743093032468,-17135.0168,0.000149,2]
[356748240,1743093032477,-2582.2092,0.000149,2]
[356748241,1743093032486,-820.2518,0.000149,2]
[356748242,1743093032496,-1000.0,0.000149,2]
[356748243,1743093032505,-2626.38001978,0.000149,2]
[356748244,1743093032514,-1000.0,0.000149,2]
[356748245,1743093032524,-1000.0,0.000149,2]
[356748246,1743093032533,-1000.0,0.000149,2]
[356748247,1743093032543,-2500.0,0.000149,2]
[356748249,1743093032553,-1000.0,0.000149,2]
[356748251,1743093032562,-169.62511609,0.000149,2]
[356748253,1743093032571,-1866.0,0.000149,2]
[356748255,1743093032581,-4084.6941,0.00014914,2]
[356748257,1743093032591,-348.14527702,0.00014973,2]
[356748259,1743093032600,-500.0,0.00014973,2]
[356748260,1743093032610,-250.0,0.00014981,2]
[356748262,1743093032619,-150.0,0.00014999,2]
[356748264,1743093032629,-150.0,0.00014999,2]
[356748266,1743093032638,-150.0,0.00014999,2]
[356748268,1743093032647,-143198.07888238,0.00015,2]
[356748270,1743093032656,-165449.19422997,0.00015,2]
[356748273,1743093032668,-4285.44298059,0.00015,2]
[356748312,1743093038119,-552.6000004,0.00015,2]
[356748313,1743093038280,-1360.21613656,0.00015,2]
[356748314,1743093038293,-35976.16236466,0.00015,2]
[356748315,1743093038393,-636.74800359,0.00015,2]
[356748322,1743093040516,-677.15224532,0.00015,2]
[356748323,1743093040624,-3022.3300001,0.00015,2]
[356748324,1743093040636,-299.9249473,0.00015,2]
[356748334,1743093043237,-433835.44586644,0.00015,2]
[356748335,1743093043246,-638081.97503253,0.00015,2]
[356748336,1743093043260,-112777.90636829,0.00015,2]
[356748337,1743093043274,-268970.15727443,0.00015,2]
[356748338,1743093043285,-620.0,0.00015,2]
[356748361,1743093046113,-481.81031609,0.00015,2]
[356748362,1743093046171,-11007.18684033,0.00015,2]
[356748363,1743093046183,-1065.89237359,0.00015,2]
[356748368,1743093425427,151.0,0.00032568,30]
[356748369,1743093723738,151.0,0.00032568,30]
[356748370,1743093892219,150.0,0.00014484,7]
[356748371,1743093898152,196.0,0.00032568,120]
[356748379,1743094128183,179.94,0.00011381,2]
[356748383,1743094192169,-250.0,0.00014104,2]
[356748416,1743094238299,-149.197034,0.00014104,2]
[356748417,1743094238314,-243.88,0.00014175,2]
[356748418,1743094238324,-3961.92296599,0.00014175,2]
[356748419,1743094238337,-577.52006457,0.00014175,2]
[356748420,1743094238566,-455.12410894,0.00014175,2]
[356748421,1743094238947,-214.86367231,0.00014175,2]
[356748555,1743094240546,-1952.97573556,0.00014175,2]
[356748601,1743094241387,-157.98384103,0.00014175,2]
[356748838,1743094246311,-766.24272863,0.00014175,2]
[356748839,1743094246363,-737.83688297,0.00014175,2]
[356748840,1743094246372,-1926.42,0.00014175,2]
[356748841,1743094246382,-200.0,0.00014226,2]
[356748842,1743094246396,-2000.0,0.00014348,2]
[356748843,1743094246406,-1925.98003703,0.00014416,2]
[356748844,1743094246417,-327.983998,0.00014416,2]
[356748845,1743094246429,-497.03596497,0.00014416,2]
[356748846,1743094246438,-335.42261343,0.00014537,2]
[356748847,1743094246526,-600.86929527,0.00014537,2]
[356748856,1743094327779,151.0,0.00032568,30]
[356748857,1743094495153,-214.86367231,0.00014027,2]
[356748858,1743094523590,-150.0,0.00014022,2]
[356748859,1743094624158,220.0,0.00032568,30]
[356748860,1743094771970,-193.120168,0.00013879,2]
[356748861,1743094771994,-56.88565304,0.0001395,2]
[356748862,1743094777020,1898.41,0.00012111,2]
[356748863,1743094800840,-150.93927295,0.0001395,2]
[356748864,1743094808079,-150.0,0.00013879,2]
[356748865,1743094828903,1000.0,0.00013,2]
[356748866,1743094859344,-150.0,0.00013879,2]
[356748867,1743094935583,-150.0,0.00013879,2]
[356748868,1743095021030,-155.48,0.00013863,2]
[356748870,1743095039197,-698.73,0.00013512,2]
[356748871,1743095083200,-237.35,0.00013519,2]
[356748873,1743095111140,-399.93,0.00013519,2]
[356748874,1743095136001,-187.40607384,0.00013519,2]
[356748875,1743095156378,150.0,0.00013475,7]
[356748876,1743095243029,-168.48,0.00013519,2]
[356748877,1743095300009,-200.0,0.00013506,2]
[356748878,1743095300036,-21.913149,0.00013519,2]
[356748879,1743095353666,-153.53106896,0.00013519,2]
[356748881,1743095359674,-1332.5876093,0.00013519,2]
[356748885,1743095361969,-155.51008316,0.00013519,2]
[356748889,1743095400819,3282.99155931,0.00013491,2]
[356748890,1743095402042,-150.0,0.00013491,2]
[356748891,1743095408844,200.0,0.00013424,2]